fUST/lending_fUST_20251004
["ID","MTS","AMOUNT","RATE_DAILY","PERIOD"]
[389109950,1759581673936,-10000.01,0.00018693,2]
[389109951,1759581681193,-10000.01,0.00018693,2]
[389109952,1759581681315,-10000.01,0.00018693,2]
[389109953,1759581681434,-10000.01,0.00018693,2]
[389109954,1759581681556,-2224.09707643,0.00018693,2]
[389109955,1759581681582,-5551.81584714,0.00018693,2]
[389109956,1759581681682,-500.0,0.00018693,2]
[389109957,1759581681715,-708.53344682,0.00018694,2]
[389109959,1759581683832,5000.0,0.00018694,2]
[389109961,1759581731778,-753.12598561,0.0001832,2]
[389109962,1759581731808,-3493.75802878,0.00018505,2]
[389109963,1759581733640,-1506.24197122,0.00018505,2]
[389109964,1759581733672,-258.98,0.00018684,3]
[389109965,1759581733703,-184.49,0.00018684,3]
[389109966,1759581733733,-300.0,0.00018691,2]
[389109967,1759581733764,-500.0,0.00018692,2]
[389109968,1759581733796,-500.0,0.00018692,2]
[389109969,1759581733825,-500.0,0.00018692,2]
[389109970,1759581733994,553.52,0.00018684,3]
[389109971,1759581741932,1200.0,0.00018693,2]
[389109972,1759581744671,747.06605756,0.00018694,2]
[389109973,1759581744695,4252.93394244,0.00018694,2]
[389109974,1759581768355,4629.35928884,0.00018033,2]
[389109975,1759581782336,2990.4344207,0.00017664,2]
[389109981,1759581938903,179.822682,0.00017687,2]
[389109982,1759581939111,179.822682,0.00017687,61]
[389109983,1759581939337,179.822682,0.00017687,120]
[389109986,1759581949329,5000.0,0.00018033,2]
[389110009,1759582115139,305.23768183,0.0001803,2]
[389110014,1759582165796,-165.04515382,0.00018183,2]
[389110015,1759582165835,-300.0,0.00018283,2]
[389110016,1759582165873,-1200.0,0.00018328,2]
[389110017,1759582165909,-300.0,0.00018328,2]
[389110018,1759582165944,-1494.0748502,0.00018329,2]
[389110019,1759582165985,-1468.71086458,0.00018329,2]
[389110020,1759582166170,-144.3482628,0.00018329,2]
[389110021,1759582166204,-3629.38303661,0.00018329,2]
[389110022,1759582167712,-3554.22572698,0.00018329,2]
[389110023,1759582169860,-2891.55854604,0.00018329,2]
[389110024,1759582169890,-1224.94094311,0.00018332,2]
[389110025,1759582169919,-542.07007859,0.00018371,2]
[389110026,1759582169961,-682.87086452,0.00018371,2]
[389110027,1759582169989,-150.0,0.000185,2]
[389110028,1759582170140,-4306.3539731,0.000185,2]
[389110029,1759582171930,-10000.01,0.000185,2]
[389110030,1759582173784,-10000.01,0.000185,2]
[389110031,1759582173895,-10000.01,0.000185,2]
[389110032,1759582175758,-10000.01,0.000185,2]
[389110034,1759582198711,4761.51,0.00018033,2]
[389110169,1759582237704,-5000.0,0.00018315,2]
[389110171,1759582237714,-1200.0,0.00018498,2]
[389110173,1759582237723,-300.0,0.00018499,2]
[389110175,1759582237732,-300.0,0.00018499,2]
[389110177,1759582237742,-300.0,0.00018499,2]
[389110179,1759582237752,-300.0,0.00018499,2]
[389110181,1759582237761,-5693.6060269,0.000185,2]
[389110183,1759582237771,-530.0,0.00018583,2]
[389110185,1759582237780,-500.0,0.00018591,2]
[389110187,1759582237789,-500.0,0.00018591,2]
[389110189,1759582237799,-500.0,0.00018591,2]
[389110191,1759582237809,-296.25972148,0.00018591,2]
[389110193,1759582237818,-244.31439668,0.00018591,2]
[389110195,1759582237827,-500.0,0.00018591,2]
[389110197,1759582237836,-500.0,0.00018591,2]
[389110199,1759582237846,-500.0,0.00018591,2]
[389110200,1759582237855,-500.0,0.00018591,2]
[389110201,1759582237864,-500.0,0.00018591,2]
[389110202,1759582237873,-500.0,0.00018591,2]
[389110203,1759582237882,-500.0,0.00018591,2]
[389110204,1759582237891,-500.0,0.00018591,2]
[389110205,1759582237901,-500.0,0.00018591,2]
[389110207,1759582237910,-500.0,0.00018591,2]
[389110209,1759582237919,-500.0,0.00018591,2]
[389110211,1759582237928,-500.0,0.00018591,2]
[389110213,1759582237937,-500.0,0.00018591,2]
[389110215,1759582237947,-500.0,0.00018591,2]
[389110217,1759582237956,-500.0,0.00018591,2]
[389110219,1759582237965,-500.0,0.00018591,2]
[389110221,1759582237974,-500.0,0.00018591,2]
[389110223,1759582237985,-500.0,0.00018591,2]
[389110225,1759582237994,-500.0,0.00018591,2]
[389110227,1759582238003,-500.0,0.00018591,2]
[389110229,1759582238012,-500.0,0.00018591,2]
[389110231,1759582238026,-500.0,0.00018591,2]
[389110233,1759582238035,-516.2006193,0.00018591,2]
[389110235,1759582238044,-500.0,0.00018591,2]
[389110237,1759582238054,-500.0,0.00018591,2]
[389110239,1759582238063,-500.0,0.00018591,2]
[389110241,1759582238072,-500.0,0.00018591,2]
[389110243,1759582238082,-500.0,0.00018591,2]
[389110245,1759582238091,-500.0,0.00018591,2]
[389110247,1759582238101,-500.0,0.00018591,2]
[389110249,1759582238110,-500.0,0.00018591,2]
[389110251,1759582238119,-500.0,0.00018591,2]
[389110253,1759582238128,-500.0,0.00018591,2]
[389110254,1759582238137,-500.0,0.00018591,2]
[389110255,1759582238146,-500.0,0.00018591,2]
[389110256,1759582238156,-500.0,0.00018591,2]
[389110257,1759582238165,-500.0,0.00018591,2]
[389110258,1759582238174,-500.0,0.00018591,2]
[389110259,1759582238184,-500.0,0.00018591,2]
[389110260,1759582238193,-500.0,0.00018591,2]
[389110261,1759582238203,-500.0,0.00018591,2]
[389110262,1759582238212,-500.0,0.00018591,2]
[389110263,1759582238222,-500.0,0.00018591,2]
[389110264,1759582238232,-500.0,0.00018591,2]
[389110265,1759582238242,-448.92839923,0.00018591,2]
[389110266,1759582238252,-500.0,0.00018591,2]
[389110267,1759582238261,-500.0,0.00018591,2]
[389110268,1759582238271,-500.0,0.00018591,2]
[389110269,1759582238280,-500.0,0.00018591,2]
[389110270,1759582238290,-256.70672539,0.00018591,2]
[389110271,1759582238300,-209.1715784,0.00018591,2]
[389110272,1759582238309,-500.0,0.00018591,2]
[389110273,1759582238319,-500.0,0.00018591,2]
[389110274,1759582238328,-500.0,0.00018591,2]
[389110275,1759582238338,-500.0,0.00018591,2]
[389110276,1759582238347,-500.0,0.00018591,2]
[389110277,1759582238356,-500.0,0.00018591,2]
[389110278,1759582238366,-500.0,0.00018591,2]
[389110279,1759582238376,-500.0,0.00018591,2]
[389110280,1759582238386,-500.0,0.00018591,2]
[389110281,1759582238395,-500.0,0.00018591,2]
[389110282,1759582238404,-500.0,0.00018591,2]
[389110283,1759582238414,-500.0,0.00018591,2]
[389110284,1759582238423,-500.0,0.00018591,2]
[389110285,1759582238432,-500.0,0.00018591,2]
[389110286,1759582238442,-500.0,0.00018591,2]
[389110288,1759582238451,-500.0,0.00018591,2]
[389110290,1759582238461,-535.95713644,0.00018591,2]
[389110292,1759582238472,-500.0,0.00018591,2]
[389110294,1759582238482,-500.0,0.00018591,2]
[389110296,1759582238493,-500.0,0.00018591,2]
[389110298,1759582238503,-500.0,0.00018591,2]
[389110300,1759582238511,-500.0,0.00018591,2]
[389110302,1759582238521,-500.0,0.00018591,2]
[389110304,1759582238530,-500.0,0.00018591,2]
[389110306,1759582238539,-500.0,0.00018591,2]
[389110308,1759582238548,-500.0,0.00018591,2]
[389110310,1759582238558,-500.0,0.00018591,2]
[389110312,1759582238567,-500.0,0.00018591,2]
[389110314,1759582238576,-500.0,0.00018591,2]
[389110316,1759582238585,-500.0,0.00018591,2]
[389110318,1759582238595,-500.0,0.00018591,2]
[389110320,1759582238604,-500.0,0.00018591,2]
[389110322,1759582238614,-500.0,0.00018591,2]
[389110324,1759582238623,-500.0,0.00018591,2]
[389110326,1759582238633,-500.0,0.00018591,2]
[389110328,1759582238641,-500.0,0.00018591,2]
[389110330,1759582238651,-500.0,0.00018591,2]
[389110332,1759582238660,-500.0,0.00018591,2]
[389110334,1759582238670,-500.0,0.00018591,2]
[389110336,1759582238679,-500.0,0.00018591,2]
[389110338,1759582238689,-500.0,0.00018591,2]
[389110340,1759582238703,-500.0,0.00018591,2]
[389110342,1759582238714,-500.0,0.00018591,2]
[389110344,1759582238723,-500.0,0.00018591,2]
[389110346,1759582238733,-311.74037024,0.00018591,2]
[389110348,1759582238743,-500.0,0.00018591,2]
[389110350,1759582238752,-500.0,0.00018591,2]
[389110352,1759582238761,-500.0,0.00018591,2]
[389110354,1759582238772,-500.0,0.00018591,2]
[389110356,1759582238781,-500.0,0.00018591,2]
[389110358,1759582238791,-500.0,0.00018591,2]
[389110360,1759582238800,-490.39026559,0.00018591,2]
[389110362,1759582238810,-500.0,0.00018591,2]
[389110364,1759582238818,-500.0,0.00018591,2]
[389110366,1759582238828,-500.0,0.00018591,2]
[389110368,1759582238837,-500.0,0.00018591,2]
[389110370,1759582238846,-500.0,0.00018591,2]
[389110372,1759582238855,-500.0,0.00018591,2]
[389110374,1759582238863,-500.0,0.00018591,2]
[389110376,1759582238873,-500.0,0.00018591,2]
[389110377,1759582238883,-500.0,0.00018591,2]
[389110379,1759582238892,-500.0,0.00018591,2]
[389110381,1759582238902,-500.0,0.00018591,2]
[389110384,1759582238912,-500.0,0.00018591,2]
[389110385,1759582238921,-500.0,0.00018591,2]
[389110387,1759582238931,-500.0,0.00018591,2]
[389110389,1759582238940,-500.0,0.00018591,2]
[389110391,1759582238949,-500.0,0.00018591,2]
[389110393,1759582238959,-500.0,0.00018591,2]
[389110395,1759582238968,-500.0,0.00018591,2]
[389110397,1759582238978,-500.0,0.00018591,2]
[389110398,1759582238987,-500.0,0.00018591,2]
[389110400,1759582238996,-500.0,0.00018591,2]
[389110402,1759582239006,-500.0,0.00018591,2]
[389110404,1759582239016,-500.0,0.00018591,2]
[389110406,1759582239025,-500.0,0.00018591,2]
[389110408,1759582239034,-500.0,0.00018591,2]
[389110410,1759582239044,-500.0,0.00018591,2]
[389110412,1759582239053,-500.0,0.00018591,2]
[389110414,1759582239063,-500.0,0.00018591,2]
[389110416,1759582239073,-500.0,0.00018591,2]
[389110418,1759582239082,-500.0,0.00018591,2]
[389110420,1759582239091,-500.0,0.00018591,2]
[389110422,1759582239101,-500.0,0.00018591,2]
[389110424,1759582239110,-500.0,0.00018591,2]
[389110426,1759582239119,-500.0,0.00018591,2]
[389110428,1759582239128,-500.0,0.00018591,2]
[389110430,1759582239138,-500.0,0.00018591,2]
[389110432,1759582239148,-500.0,0.00018591,2]
[389110434,1759582239157,-500.0,0.00018591,2]
[389110436,1759582239167,-599.22515903,0.00018591,2]
[389110438,1759582239176,-500.0,0.00018591,2]
[389110440,1759582239185,-500.0,0.00018591,2]
[389110442,1759582239194,-500.0,0.00018591,2]
[389110444,1759582239203,-539.61422801,0.00018591,2]
[389110446,1759582239213,-500.0,0.00018591,2]
[389110448,1759582239222,-500.0,0.00018591,2]
[389110450,1759582239231,-500.0,0.00018591,2]
[389110452,1759582239240,-500.0,0.00018591,2]
[389110455,1759582239249,-500.0,0.00018591,2]
[389110457,1759582239258,-500.0,0.00018591,2]
[389110460,1759582239267,-500.0,0.00018591,2]
[389110462,1759582239276,-500.0,0.00018591,2]
[389110465,1759582239286,-500.0,0.00018591,2]
[389110468,1759582239295,-500.0,0.00018591,2]
[389110470,1759582239304,-500.0,0.00018591,2]
[389110472,1759582239312,-500.0,0.00018591,2]
[389110474,1759582239322,-500.00000001,0.00018591,2]
[389110476,1759582239331,-500.0,0.00018591,2]
[389110477,1759582239340,-499.99999999,0.00018591,2]
[389110478,1759582239349,-500.0,0.00018592,2]
[389110480,1759582239358,-6303.52313476,0.00018594,2]
[389110482,1759582239367,-7932.83291704,0.00018594,2]
[389110484,1759582239376,-151.0,0.000186,2]
[389110486,1759582239385,-3388.2768813,0.00018676,2]
[389110488,1759582239393,-64457.6980497,0.00018676,2]
[389110490,1759582239402,-1006.14,0.00018683,3]
[389110492,1759582239411,-503.07,0.00018683,3]
[389110494,1759582239420,-251.53,0.00018683,3]
[389110496,1759582239429,-754.62,0.00018683,3]
[389110498,1759582239438,-2043.1455856,0.00018693,2]
[389110500,1759582239447,-2000.0,0.00018693,2]
[389110502,1759582239456,-2000.0,0.00018693,2]
[389110504,1759582239465,-1468.263,0.00018693,2]
[389110506,1759582239474,-500.0,0.00018694,2]
[389110508,1759582239484,-500.0,0.00018694,2]
[389110510,1759582239493,-273259.14264912,0.00018694,2]
[389110512,1759582239503,-1000.0,0.00018694,2]
[389110514,1759582239513,-1000.0,0.00018694,2]
[389110516,1759582239522,-1000.0,0.00018694,2]
[389110518,1759582239531,-1000.0,0.00018694,2]
[389110520,1759582239540,-1000.0,0.00018694,2]
[389110522,1759582239549,-1000.0,0.00018694,2]
[389110524,1759582239558,-1000.0,0.00018694,2]
[389110526,1759582239567,-1000.0,0.00018694,2]
[389110528,1759582239576,-1000.0,0.00018694,2]
[389110530,1759582239585,-1000.0,0.00018694,2]
[389110532,1759582239596,-343.16205694,0.00018694,2]
[389110534,1759582239605,-200.0,0.00018694,10]
[389110536,1759582239615,-200.0,0.00018694,10]
[389110538,1759582239623,-200.0,0.00018694,10]
[389110540,1759582239632,-200.0,0.00018694,10]
[389110542,1759582239641,-207.921585,0.00018694,10]
[389110544,1759582239650,-151.0,0.000187,2]
[389110546,1759582239658,-378.4781964,0.000187,2]
[389110548,1759582239668,-594.5841868,0.000187,2]
[389110550,1759582239677,-306.0,0.000187,2]
[389110552,1759582239687,-644.266731,0.000187,2]
[389110554,1759582239698,-162.6278409,0.000187,2]
[389110556,1759582239710,-587.5095739,0.000187,2]
[389110558,1759582239719,-162.6278409,0.000187,2]
[389110560,1759582239729,-587.5095739,0.000187,2]
[389110562,1759582239740,-151.0,0.000187,2]
[389110564,1759582239749,-151.0,0.000187,2]
[389110566,1759582239758,-425.8520326,0.000187,2]
[389110568,1759582239766,-6303.52313472,0.00018715,2]
[389110570,1759582239777,-198.62,0.000188,2]
[389110573,1759582239785,-150.0,0.000188,2]
[389110575,1759582239795,-151.0,0.000188,2]
[389110577,1759582239805,-151.0,0.000188,2]
[389110579,1759582239814,-151.0,0.000188,2]
[389110582,1759582239823,-6303.52313472,0.00018836,2]
[389110585,1759582239832,-1224.94094311,0.00018839,2]
[389110588,1759582239840,-500.0,0.00018866,2]
[389110590,1759582239849,-162.6278409,0.00018878,2]
[389110592,1759582239858,-587.5095739,0.00018878,2]
[389110594,1759582239867,-151.0,0.000189,2]
[389110596,1759582239876,-151.0,0.000189,2]
[389110598,1759582239885,-151.0,0.000189,2]
[389110600,1759582239895,-302.84859387,0.000189,2]
[389110602,1759582239904,-303.0,0.00018903,2]
[389110604,1759582239913,-1224.94094312,0.00018926,2]
[389110606,1759582239922,-1000.0,0.00018953,2]
[389110608,1759582239931,-483.99922484,0.00018953,2]
[389110610,1759582239939,-166.0,0.00018953,2]
[389110612,1759582239948,-151.0,0.00018953,2]
[389110614,1759582239958,-151.0,0.00018953,2]
[389110616,1759582239967,-151.0,0.00018953,2]
[389110618,1759582239976,-288.69921743,0.00018953,2]
[389110620,1759582239985,-500.0,0.00018953,2]
[389110622,1759582239994,-500.0,0.00018953,2]
[389110624,1759582240003,-500.0,0.00018953,2]
[389110626,1759582240012,-500.0,0.00018953,2]
[389110628,1759582240021,-500.0,0.00018953,2]
[389110630,1759582240030,-500.0,0.00018953,2]
[389110632,1759582240039,-500.0,0.00018953,2]
[389110634,1759582240048,-250.0,0.00018953,2]
[389110636,1759582240058,-250.0,0.00018953,2]
[389110638,1759582240067,-250.0,0.00018953,2]
[389110640,1759582240077,-250.0,0.00018953,2]
[389110642,1759582240086,-250.0,0.00018953,2]
[389110644,1759582240096,-250.0,0.00018953,2]
[389110646,1759582240105,-250.0,0.00018953,2]
[389110648,1759582240114,-250.0,0.00018953,2]
[389110650,1759582240123,-6303.52313472,0.00018957,2]
[389110652,1759582240132,-618.6599658,0.00018964,2]
[389110654,1759582240141,-500.0,0.00018968,2]
[389110656,1759582240150,-500.0,0.00018968,2]
[389110658,1759582240159,-100000.0,0.0001899,2]
[389110660,1759582240169,-151.0,0.00019,2]
[389110662,1759582240179,-151.0,0.00019,2]
[389110664,1759582240188,-176.84945532,0.00019078,2]
[389110666,1759582240198,-6303.52313472,0.00019078,2]
[389110668,1759582240207,-10000.0,0.00019078,2]
[389110670,1759582240216,-151.0,0.000191,2]
[389110672,1759582240226,-151.0,0.000191,2]
[389110674,1759582240235,-151.0,0.000191,2]
[389110676,1759582240244,-500.0,0.0001914,2]
[389110678,1759582240254,-500.0,0.00019173,2]
[389110680,1759582240263,-500.0,0.00019173,2]
[389110682,1759582240271,-500.0,0.00019173,2]
[389110684,1759582240281,-500.50834173,0.00019173,2]
[389110686,1759582240290,-500.0,0.00019173,2]
[389110687,1759582240300,-500.0,0.00019173,2]
[389110689,1759582240311,-500.0,0.00019173,2]
[389110692,1759582240320,-500.0,0.00019173,2]
[389110694,1759582240330,-500.0,0.00019173,2]
[389110695,1759582240340,-500.0,0.00019173,2]
[389110698,1759582240351,-500.0,0.00019173,2]
[389110700,1759582240360,-504.92866586,0.00019173,2]
[389110702,1759582240369,-505.92220362,0.00019173,2]
[389110703,1759582240378,-500.0,0.00019173,2]
[389110706,1759582240388,-500.0,0.00019173,2]
[389110708,1759582240397,-500.0,0.00019173,2]
[389110710,1759582240407,-500.0,0.00019173,2]
[389110711,1759582240417,-503.41911188,0.00019173,2]
[389110713,1759582240427,-500.0,0.00019173,2]
[389110715,1759582240437,-500.0,0.00019173,2]
[389110718,1759582240446,-500.0,0.00019173,2]
[389110719,1759582240456,-500.0,0.00019173,2]
[389110721,1759582240465,-500.0,0.00019173,2]
[389110723,1759582240474,-500.0,0.00019173,2]
[389110726,1759582240484,-500.0,0.00019173,2]
[389110728,1759582240493,-500.0,0.00019173,2]
[389110729,1759582240502,-500.0,0.00019173,2]
[389110731,1759582240511,-207.69532041,0.00019173,2]
[389110733,1759582240520,-500.0,0.00019173,2]
[389110736,1759582240531,-521.49085483,0.00019173,2]
[389110738,1759582240541,-500.0,0.00019173,2]
[389110740,1759582240550,-502.9385714,0.00019173,2]
[389110742,1759582240559,-500.0,0.00019173,2]
[389110744,1759582240568,-511.18519808,0.00019173,2]
[389110746,1759582240578,-500.0,0.00019173,2]
[389110748,1759582240587,-500.0,0.00019173,2]
[389110750,1759582240596,-500.0,0.00019173,2]
[389110752,1759582240605,-500.0,0.00019173,2]
[389110753,1759582240614,-500.0,0.00019173,2]
[389110756,1759582240625,-500.0,0.00019173,2]
[389110757,1759582240634,-500.0,0.00019173,2]
[389110760,1759582240644,-500.0,0.00019173,2]
[389110762,1759582240653,-342.18247551,0.00019173,2]
[389110764,1759582240662,-500.0,0.00019178,2]
[389110765,1759582240671,-159.59902133,0.00019178,2]
[389110768,1759582240680,-24367.3512684,0.00019178,2]
[389110769,1759582240690,-1129.15,0.00019178,2]
[389110772,1759582240703,-485.7486831,0.00019178,2]
[389110773,1759582240712,-500.0,0.00019178,2]
[389110776,1759582240722,-500.0,0.00019178,2]
[389110778,1759582240732,-500.0,0.00019178,2]
[389110780,1759582240740,-500.0,0.00019178,2]
[389110782,1759582240750,-483.10218923,0.00019178,2]
[389110784,1759582240759,-500.0,0.00019178,2]
[389110786,1759582240768,-500.0,0.00019178,2]
[389110788,1759582240779,-500.0,0.00019178,2]
[389110790,1759582240791,-500.0,0.00019178,2]
[389110792,1759582240802,-500.0,0.00019178,2]
[389110793,1759582240811,-500.0,0.00019178,2]
[389110795,1759582240821,-500.0,0.00019178,2]
[389110798,1759582240832,-500.0,0.00019178,2]
[389110800,1759582240841,-500.0,0.00019178,2]
[389110802,1759582240850,-500.0,0.00019178,2]
[389110804,1759582240860,-500.0,0.00019178,2]
[389110806,1759582240869,-507.40357399,0.00019178,2]
[389110808,1759582240878,-500.0,0.00019178,2]
[389110810,1759582240887,-500.0,0.00019178,2]
[389110812,1759582240896,-500.0,0.00019178,2]
[389110814,1759582240906,-500.0,0.00019178,2]
[389110816,1759582240916,-430.22560271,0.00019178,2]
[389110817,1759582240925,-500.0,0.00019178,2]
[389110820,1759582240935,-500.0,0.00019178,2]
[389110822,1759582240945,-500.0,0.00019178,2]
[389110824,1759582240954,-500.0,0.00019178,2]
[389110826,1759582240963,-500.0,0.00019178,2]
[389110828,1759582240972,-500.0,0.00019178,2]
[389110830,1759582240981,-500.0,0.00019178,2]
[389110832,1759582240991,-500.0,0.00019178,2]
[389110834,1759582241000,-500.0,0.00019178,2]
[389110836,1759582241009,-500.0,0.00019178,2]
[389110838,1759582241018,-500.0,0.00019178,2]
[389110840,1759582241027,-257.84053546,0.00019178,2]
[389110842,1759582241036,-500.0,0.00019178,2]
[389110844,1759582241045,-500.0,0.00019178,2]
[389110846,1759582241053,-619.34753044,0.00019178,2]
[389110848,1759582241062,-500.0,0.00019178,2]
[389110850,1759582241071,-635.33,0.00019178,2]
[389110852,1759582241080,-500.0,0.00019178,2]
[389110854,1759582241090,-552.57,0.00019178,2]
[389110856,1759582241099,-734.82,0.00019178,2]
[389110857,1759582241108,-500.0,0.00019178,2]
[389110860,1759582241117,-500.0,0.00019178,2]
[389110861,1759582241126,-500.0,0.00019178,2]
[389110864,1759582241136,-563.89,0.00019178,2]
[389110866,1759582241145,-693.1,0.00019178,2]
[389110868,1759582241154,-500.0,0.00019178,2]
[389110869,1759582241163,-553.96,0.00019178,2]
[389110872,1759582241172,-500.0,0.00019178,2]
[389110892,1759582241352,-500.0,0.00019178,2]
[389110894,1759582241362,-500.0,0.00019178,2]
[389110896,1759582241371,-500.0,0.00019178,2]
[389110898,1759582241381,-500.0,0.00019178,2]
[389110900,1759582241390,-500.0,0.00019178,2]
[389110902,1759582241400,-667.64,0.00019178,2]
[389110904,1759582241409,-273.44983229,0.00019178,2]
[389110906,1759582241419,-500.0,0.00019178,2]
[389110908,1759582241428,-500.0,0.00019178,2]
[389110910,1759582241437,-500.0,0.00019178,2]
[389110912,1759582241447,-500.0,0.00019178,2]
[389110914,1759582241457,-500.0,0.00019178,2]
[389110916,1759582241468,-500.0,0.00019178,2]
[389110918,1759582241477,-500.0,0.00019178,2]
[389110920,1759582241491,-500.0,0.00019178,2]
[389110922,1759582241500,-500.0,0.00019178,2]
[389110924,1759582241510,-500.0,0.00019178,2]
[389110926,1759582241520,-500.0,0.00019178,2]
[389110928,1759582241529,-500.0,0.00019178,2]
[389110930,1759582241538,-500.0,0.00019178,2]
[389110932,1759582241550,-500.0,0.00019178,2]
[389110934,1759582241559,-927.47,0.00019178,2]
[389110936,1759582241569,-500.0,0.00019178,2]
[389110938,1759582241578,-500.0,0.00019178,2]
[389110940,1759582241587,-500.0,0.00019178,2]
[389110942,1759582241596,-500.0,0.00019178,2]
[389110944,1759582241605,-500.0,0.00019178,2]
[389110946,1759582241614,-481.05922165,0.00019178,2]
[389110948,1759582241623,-500.0,0.00019178,2]
[389110950,1759582241633,-500.0,0.00019178,2]
[389110952,1759582241642,-500.0,0.00019178,2]
[389110954,1759582241651,-500.0,0.00019178,2]
[389110956,1759582241660,-882.4,0.00019178,2]
[389110958,1759582241670,-500.0,0.00019178,2]
[389110960,1759582241679,-500.0,0.00019178,2]
[389110962,1759582241688,-487.83690224,0.00019178,2]
[389110964,1759582241699,-500.0,0.00019178,2]
[389110966,1759582241710,-500.0,0.00019178,2]
[389110968,1759582241720,-500.0,0.00019178,2]
[389110971,1759582241731,-899.57,0.00019178,2]
[389110973,1759582241741,-500.0,0.00019178,2]
[389110975,1759582241750,-500.0,0.00019178,2]
[389110977,1759582241759,-500.0,0.00019178,2]
[389110979,1759582241768,-500.0,0.00019178,2]
[389110981,1759582241778,-228.04,0.00019178,2]
[389110983,1759582241787,-214.30396273,0.00019178,2]
[389110985,1759582241797,-500.0,0.00019178,2]
[389110987,1759582241806,-500.0,0.00019178,2]
[389110989,1759582241815,-481.24751703,0.00019178,2]
[389110991,1759582241823,-500.0,0.00019178,2]
[389110993,1759582241832,-500.0,0.00019178,2]
[389110995,1759582241841,-2623.04,0.00019178,2]
[389110997,1759582241851,-500.0,0.00019178,2]
[389110999,1759582241860,-500.0,0.00019178,2]
[389111001,1759582241869,-500.0,0.00019178,2]
[389111003,1759582241878,-500.0,0.00019178,2]
[389111005,1759582241887,-500.0,0.00019178,2]
[389111007,1759582241897,-500.0,0.00019178,2]
[389111009,1759582241906,-500.0,0.00019178,2]
[389111010,1759582241915,-500.0,0.00019178,2]
[389111013,1759582241925,-500.0,0.00019178,2]
[389111015,1759582241934,-640.83,0.00019178,2]
[389111017,1759582241943,-500.0,0.00019178,2]
[389111019,1759582241952,-500.0,0.00019178,2]
[389111021,1759582241961,-500.0,0.00019178,2]
[389111023,1759582241971,-500.0,0.00019178,2]
[389111024,1759582241980,-500.0,0.00019178,2]
[389111027,1759582241990,-500.0,0.00019178,2]
[389111029,1759582241999,-500.0,0.00019178,2]
[389111030,1759582242014,-500.0,0.00019178,2]
[389111033,1759582242024,-500.0,0.00019178,2]
[389111035,1759582242033,-500.0,0.00019178,2]
[389111037,1759582242042,-500.0,0.00019178,2]
[389111038,1759582242052,-500.0,0.00019178,2]
[389111041,1759582242061,-500.0,0.00019178,2]
[389111043,1759582242070,-485.58,0.00019178,2]
[389111045,1759582242079,-500.0,0.00019178,2]
[389111047,1759582242088,-500.0,0.00019178,2]
[389111048,1759582242098,-500.0,0.00019178,2]
[389111050,1759582242107,-500.0,0.00019178,2]
[389111052,1759582242116,-500.0,0.00019178,2]